{"text_format":"3","workbook":"xlsx","n_sheets":4,"sheets":["Początek","PARAMETRY PROJEKTU","SZCZEGÓŁY PROJEKTU","SUMY PROJEKTU"],"not_rendered":{"charts":2,"defined_names":3,"pivot_tables":1},"read":"whole","date_system":"1900"}

{"sheet":"Początek","index":0,"n_rows":8,"n_cols":2,"rows_kept":8}
[null,"INFORMACJE O TYM SZABLONIE"]
[]
[null,"Ten skoroszyt umożliwia śledzenie parametry projektu, szczegóły projektu i sumy projektu podczas planowanie projektu dla kancelarii prawnych."]
[null,"Wprowadź nazwa firmy w arkuszu Parametry projektu, a zostanie ona automatycznie zaktualizowana w innych arkuszach."]
[null,"Wprowadź informacje w arkuszu Parametry projektu, aby zaktualizować wykresy kolumnowe i informacje w arkuszu Szczegóły projektu. Tabela przestawna w arkuszu Sumy projektu jest aktualizowana automatycznie."]
[null,"Uwaga:  "]
[null,"W kolumnie A w każdym arkuszu podano dodatkowe instrukcje. Ten tekst celowo został ukryty. Aby usunąć tekst, zaznacz kolumnę A, a następnie naciśnij klawisz DELETE. Aby odkryć tekst, zaznacz kolumnę A, a następnie zmień kolor czcionki."]
[null,"Aby uzyskać więcej informacji o tabelach w tym arkuszu, w tabeli naciśnij klawisz SHIFT, a następnie F10, wybierz pozycję TABELA, a następnie TEKST ALTERNATYWNY. W tabeli przestawnej w arkuszu Sumy projektu naciśnij klawisz SHIFT, a następnie F10, wybierz pozycję OPCJE TABELI PRZESTAWNEJ, a następnie kartę TEKST ALTERNATYWNY."]

{"sheet":"PARAMETRY PROJEKTU","index":1,"n_rows":19,"n_cols":9,"rows_kept":19}
["W tym arkuszu wprowadź parametry projektu. W komórce po prawej stronie wprowadź nazwa firmy. W komórkach w tej kolumnie podano przydatne instrukcje.","Nazwa firmy"]
["W komórce po prawej stronie znajduje się tytuł tego arkusza.","Planowanie projektu dla kancelarii prawnych"]
["W komórce po prawej stronie znajduje się komunikat dotyczący poufności informacji.",{"$f":"\"Poufna \"&B1","v":"Poufna Nazwa firmy"}]
["W komórce po prawej stronie znajduje się porada.","Cieniowane komórki są obliczane automatycznie. Nie trzeba w nich niczego wprowadzać."]
["Wprowadź szczegóły w tabeli Parametry zaczynającej się od komórki po prawej stronie. Dalsze instrukcje znajdują się w komórce A12.","TYP PROJEKTU","PARTNER OGÓLNY","PRAWNIK DS. DZIAŁALNOŚCI","OBROŃCA","PRAWNIK DS. WŁASNOŚCI INTELEKTUALNEJ","PRAWNIK DS. UPADŁOŚCI","PERSONEL ADMINISTRACYJNY","SUMA"]
[null,"Zakładanie firmy",{"v":0.1,"d":"10%"},{"v":0.4,"d":"40%"},{"v":0,"d":"0%"},{"v":0,"d":"0%"},{"v":0,"d":"0%"},{"v":0.5,"d":"50%"},{"$f":"SUM(Parametry[[#This Row],[PARTNER OGÓLNY]:[PERSONEL ADMINISTRACYJNY]])","v":{"v":1,"d":"100%"}}]
[null,"Przejmowanie firmy",{"v":0.1,"d":"10%"},{"v":0.4,"d":"40%"},{"v":0,"d":"0%"},{"v":0.1,"d":"10%"},{"v":0,"d":"0%"},{"v":0.4,"d":"40%"},{"$f":"SUM(Parametry[[#This Row],[PARTNER OGÓLNY]:[PERSONEL ADMINISTRACYJNY]])","v":{"v":1,"d":"100%"}}]
[null,"Obrona przed skargami z tytułu wad produktów",{"v":0.2,"d":"20%"},{"v":0,"d":"0%"},{"v":0.5,"d":"50%"},{"v":0,"d":"0%"},{"v":0,"d":"0%"},{"v":0.3,"d":"30%"},{"$f":"SUM(Parametry[[#This Row],[PARTNER OGÓLNY]:[PERSONEL ADMINISTRACYJNY]])","v":{"v":1,"d":"100%"}}]
[null,"Wniosek patentowy",{"v":0.1,"d":"10%"},{"v":0,"d":"0%"},{"v":0,"d":"0%"},{"v":0.6,"d":"60%"},{"v":0,"d":"0%"},{"v":0.3,"d":"30%"},{"$f":"SUM(Parametry[[#This Row],[PARTNER OGÓLNY]:[PERSONEL ADMINISTRACYJNY]])","v":{"v":1,"d":"100%"}}]
[null,"Pozew pracownika",{"v":0.2,"d":"20%"},{"v":0.1,"d":"10%"},{"v":0.4,"d":"40%"},{"v":0,"d":"0%"},{"v":0,"d":"0%"},{"v":0.3,"d":"30%"},{"$f":"SUM(Parametry[[#This Row],[PARTNER OGÓLNY]:[PERSONEL ADMINISTRACYJNY]])","v":{"v":1,"d":"100%"}}]
[null,"Upadłość",{"v":0.1,"d":"10%"},{"v":0.2,"d":"20%"},{"v":0,"d":"0%"},{"v":0,"d":"0%"},{"v":0.4,"d":"40%"},{"v":0.3,"d":"30%"},{"$f":"SUM(Parametry[[#This Row],[PARTNER OGÓLNY]:[PERSONEL ADMINISTRACYJNY]])","v":{"v":1,"d":"100%"}}]
["W komórkach po prawej stronie (od C12 do H12) wprowadź stawki uśrednione. Dalsze instrukcje znajdują się w komórce A14.","Stawki uśrednione",{"v":350,"d":"350 zł"},{"v":250,"d":"250 zł"},{"v":300,"d":"300 zł"},{"v":275,"d":"275 zł"},{"v":225,"d":"225 zł"},{"v":125,"d":"125 zł"}]
[]
["W komórce po prawej stronie znajduje się wykres kolumnowy przedstawiający porównanie kosztu planowanego i rzeczywistego, a w komórce F14 — wykres kolumnowy przedstawiający porównanie godzin planowanych i godzin rzeczywistych."]
[null,null,"PARTNER OGÓLNY","DZIAŁALNOŚĆ","OBROŃCA","WŁASNOŚĆ INTELEKT.","UPADŁOŚĆ","PERSONEL ADMINISTRACYJNY"]
[null,"KOSZT PLANOWANY",{"$f":"SUBTOTAL(109,Szczegóły[PARTNER OGÓLNY])","v":{"v":78750,"d":"78,750.00 zł"}},{"$f":"SUBTOTAL(109,Szczegóły[PRAWNIK DS. DZIAŁALNOŚCI])","v":{"v":66250,"d":"66,250.00 zł"}},{"$f":"SUBTOTAL(109,Szczegóły[OBROŃCA])","v":{"v":105000,"d":"105,000.00 zł"}},{"$f":"SUBTOTAL(109,Szczegóły[PRAWNIK DS. WŁASNOŚCI INTELEKTUALNEJ])","v":{"v":35750,"d":"35,750.00 zł"}},{"$f":"SUBTOTAL(109,Szczegóły[PRAWNIK DS. UPADŁOŚCI])","v":{"v":0,"d":"0.00 zł"}},{"$f":"SUBTOTAL(109,Szczegóły[PERSONEL ADMINISTRACYJNY])","v":{"v":66250,"d":"66,250.00 zł"}}]
[null,"KOSZT RZECZYWISTY",{"$f":"SUBTOTAL(109,Szczegóły[PARTNER OGÓLNY 2])","v":{"v":79275,"d":"79,275.00 zł"}},{"$f":"SUBTOTAL(109,Szczegóły[PRAWNIK DS. DZIAŁALNOŚCI 2])","v":{"v":67375,"d":"67,375.00 zł"}},{"$f":"SUBTOTAL(109,Szczegóły[OBROŃCA 2])","v":{"v":105600,"d":"105,600.00 zł"}},{"$f":"SUBTOTAL(109,Szczegóły[PRAWNIK DS. WŁASNOŚCI INTELEKTUALNEJ 2])","v":{"v":34650,"d":"34,650.00 zł"}},{"$f":"SUBTOTAL(109,Szczegóły[PRAWNIK DS. UPADŁOŚCI 2])","v":{"v":0,"d":"0.00 zł"}},{"$f":"SUBTOTAL(109,Szczegóły[PERSONEL ADMINISTRACYJNY 2])","v":{"v":67000,"d":"67,000.00 zł"}}]
[null,"GODZINY PLANOWANE",{"$f":"C16/$C$12","v":{"v":225,"d":"225.00"}},{"$f":"D16/$C$12","v":{"v":189.28571428571428,"d":"189.29"}},{"v":300,"d":"300.00"},{"v":102.14285714285714,"d":"102.14"},{"v":0,"d":"0.00"},{"v":189.28571428571428,"d":"189.29"}]
[null,"GODZINY RZECZYWISTE",{"$f":"C17/$C$12","v":{"v":226.5,"d":"226.50"}},{"$f":"D17/$C$12","v":{"v":192.5,"d":"192.50"}},{"$f":"E17/$C$12","v":{"v":301.7142857142857,"d":"301.71"}},{"$f":"F17/$C$12","v":{"v":99,"d":"99.00"}},{"$f":"G17/$C$12","v":{"v":0,"d":"0.00"}},{"$f":"H17/$C$12","v":{"v":191.42857142857142,"d":"191.43"}}]

{"sheet":"SZCZEGÓŁY PROJEKTU","index":2,"n_rows":10,"n_cols":25,"rows_kept":10,"merged":[[1,24,8,28]]}
["W tym arkuszu wprowadź szczegóły projektu. W komórce po prawej stronie jest automatycznie aktualizowana nazwa firmy. W komórkach w tej kolumnie podano przydatne instrukcje. Naciśnij strzałkę w dół, aby rozpocząć pracę.",{"$f":"'PARAMETRY PROJEKTU'!B1","v":"Nazwa firmy"}]
["W komórce po prawej stronie znajduje się tytuł tego arkusza, a w komórce Y2 — porada informacyjna.",{"$f":"'PARAMETRY PROJEKTU'!B2","v":"Planowanie projektu dla kancelarii prawnych"},{"$nulls":22},"INFORMACJE:\nAby dodać wiersz, zaznacz komórkę w prawym dolnym rogu w treści tabeli (nie w wierszu sum) i naciśnij klawisz Tab lub naciśnij klawisz SHIFT, a następnie klawisz F10 w tabeli, w której chcesz wstawić wiersz, i wybierz pozycję Wstaw | Wiersze tabeli powyżej/poniżej.\nPamiętaj o usunięciu wszystkich nieużywanych wierszy, ponieważ w tabeli przestawnej SUMY PROJEKTU będą używane wszystkie komórki tabeli, co w przypadku pozostawienia tych wierszy mogłoby skutkować błędnymi wynikami."]
["W komórce po prawej stronie znajduje się komunikat dotyczący poufności informacji.",{"$f":"'PARAMETRY PROJEKTU'!B3","v":"Poufna Nazwa firmy"}]
["Wprowadź informacje w tabeli Szczegóły zaczynającej się od komórki po prawej stronie. Typ projektu w tabeli Szczegóły po prawej stronie są aktualizowane automatycznie na podstawie tabeli Parametry w arkuszu Parametry projektu.","NAZWA PROJEKTU","TYP PROJEKTU","SZACOWANE ROZPOCZĘCIE","SZACOWANE ZAKOŃCZENIE","RZECZYWISTE ROZPOCZĘCIE","RZECZYWISTE ZAKOŃCZENIE","PRACA SZACOWANA","PRACA RZECZYWISTA","SZACOWANY CZAS TRWANIA","RZECZYWISTY CZAS TRWANIA","PARTNER OGÓLNY","PRAWNIK DS. DZIAŁALNOŚCI","OBROŃCA","PRAWNIK DS. WŁASNOŚCI INTELEKTUALNEJ","PRAWNIK DS. UPADŁOŚCI","PERSONEL ADMINISTRACYJNY","PARTNER OGÓLNY 2","PRAWNIK DS. DZIAŁALNOŚCI 2","OBROŃCA 2","PRAWNIK DS. WŁASNOŚCI INTELEKTUALNEJ 2","PRAWNIK DS. UPADŁOŚCI 2","PERSONEL ADMINISTRACYJNY 2"]
[null,"Projekt 1","Zakładanie firmy",{"$f":"TODAY()","v":"2019-02-15"},{"$f":"TODAY()+60","v":"2019-04-16"},{"$f":"TODAY()+10","v":"2019-02-25"},{"$f":"TODAY()+65","v":"2019-04-21"},200,220,{"$f":"DAYS360(Szczegóły[[#This Row],[SZACOWANE ROZPOCZĘCIE]],Szczegóły[[#This Row],[SZACOWANE ZAKOŃCZENIE]],FALSE)","v":61},{"$f":"DAYS360(Szczegóły[[#This Row],[RZECZYWISTE ROZPOCZĘCIE]],Szczegóły[[#This Row],[RZECZYWISTE ZAKOŃCZENIE]],FALSE)","v":56},{"$f":"INDEX(Parametry[],MATCH(Szczegóły[[#This Row],[TYP PROJEKTU]],Parametry[TYP PROJEKTU],0),MATCH(Szczegóły[[#Headers],[PARTNER OGÓLNY]],Parametry[#Headers],0))*INDEX('PARAMETRY PROJEKTU'!$B$12:$H$12,1,MATCH(Szczegóły[[#Headers],[PARTNER OGÓLNY]],Parametry[#Headers],0))*Szczegóły[[#This Row],[PRACA SZACOWANA]]","v":{"v":7000,"d":"7,000 zł"}},{"$f":"INDEX(Parametry[],MATCH(Szczegóły[[#This Row],[TYP PROJEKTU]],Parametry[TYP PROJEKTU],0),MATCH(Szczegóły[[#Headers],[PRAWNIK DS. DZIAŁALNOŚCI]],Parametry[#Headers],0))*INDEX('PARAMETRY PROJEKTU'!$B$12:$H$12,1,MATCH(Szczegóły[[#Headers],[PRAWNIK DS. DZIAŁALNOŚCI]],Parametry[#Headers],0))*Szczegóły[[#This Row],[PRACA SZACOWANA]]","v":{"v":20000,"d":"20,000 zł"}},{"$f":"INDEX(Parametry[],MATCH(Szczegóły[[#This Row],[TYP PROJEKTU]],Parametry[TYP PROJEKTU],0),MATCH(Szczegóły[[#Headers],[OBROŃCA]],Parametry[#Headers],0))*INDEX('PARAMETRY PROJEKTU'!$B$12:$H$12,1,MATCH(Szczegóły[[#Headers],[OBROŃCA]],Parametry[#Headers],0))*Szczegóły[[#This Row],[PRACA SZACOWANA]]","v":{"v":0,"d":"0 zł"}},{"$f":"INDEX(Parametry[],MATCH(Szczegóły[[#This Row],[TYP PROJEKTU]],Parametry[TYP PROJEKTU],0),MATCH(Szczegóły[[#Headers],[PRAWNIK DS. WŁASNOŚCI INTELEKTUALNEJ]],Parametry[#Headers],0))*INDEX('PARAMETRY PROJEKTU'!$B$12:$H$12,1,MATCH(Szczegóły[[#Headers],[PRAWNIK DS. WŁASNOŚCI INTELEKTUALNEJ]],Parametry[#Headers],0))*Szczegóły[[#This Row],[PRACA SZACOWANA]]","v":{"v":0,"d":"0 zł"}},{"$f":"INDEX(Parametry[],MATCH(Szczegóły[[#This Row],[TYP PROJEKTU]],Parametry[TYP PROJEKTU],0),MATCH(Szczegóły[[#Headers],[PRAWNIK DS. UPADŁOŚCI]],Parametry[#Headers],0))*INDEX('PARAMETRY PROJEKTU'!$B$12:$H$12,1,MATCH(Szczegóły[[#Headers],[PRAWNIK DS. UPADŁOŚCI]],Parametry[#Headers],0))*Szczegóły[[#This Row],[PRACA SZACOWANA]]","v":{"v":0,"d":"0 zł"}},{"$f":"INDEX(Parametry[],MATCH(Szczegóły[[#This Row],[TYP PROJEKTU]],Parametry[TYP PROJEKTU],0),MATCH(Szczegóły[[#Headers],[PERSONEL ADMINISTRACYJNY]],Parametry[#Headers],0))*INDEX('PARAMETRY PROJEKTU'!$B$12:$H$12,1,MATCH(Szczegóły[[#Headers],[PERSONEL ADMINISTRACYJNY]],Parametry[#Headers],0))*Szczegóły[[#This Row],[PRACA SZACOWANA]]","v":{"v":12500,"d":"12,500 zł"}},{"$f":"INDEX(Parametry[],MATCH(Szczegóły[[#This Row],[TYP PROJEKTU]],Parametry[TYP PROJEKTU],0),MATCH(Szczegóły[[#Headers],[PARTNER OGÓLNY]],Parametry[#Headers],0))*INDEX('PARAMETRY PROJEKTU'!$B$12:$H$12,1,MATCH(Szczegóły[[#Headers],[PARTNER OGÓLNY]],Parametry[#Headers],0))*Szczegóły[[#This Row],[PRACA RZECZYWISTA]]","v":{"v":7700,"d":"7,700 zł"}},{"$f":"INDEX(Parametry[],MATCH(Szczegóły[[#This Row],[TYP PROJEKTU]],Parametry[TYP PROJEKTU],0),MATCH(Szczegóły[[#Headers],[PRAWNIK DS. DZIAŁALNOŚCI]],Parametry[#Headers],0))*INDEX('PARAMETRY PROJEKTU'!$B$12:$H$12,1,MATCH(Szczegóły[[#Headers],[PRAWNIK DS. DZIAŁALNOŚCI]],Parametry[#Headers],0))*Szczegóły[[#This Row],[PRACA RZECZYWISTA]]","v":{"v":22000,"d":"22,000 zł"}},{"$f":"INDEX(Parametry[],MATCH(Szczegóły[[#This Row],[TYP PROJEKTU]],Parametry[TYP PROJEKTU],0),MATCH(Szczegóły[[#Headers],[OBROŃCA]],Parametry[#Headers],0))*INDEX('PARAMETRY PROJEKTU'!$B$12:$H$12,1,MATCH(Szczegóły[[#Headers],[OBROŃCA]],Parametry[#Headers],0))*Szczegóły[[#This Row],[PRACA RZECZYWISTA]]","v":{"v":0,"d":"0 zł"}},{"$f":"INDEX(Parametry[],MATCH(Szczegóły[[#This Row],[TYP PROJEKTU]],Parametry[TYP PROJEKTU],0),MATCH(Szczegóły[[#Headers],[PRAWNIK DS. WŁASNOŚCI INTELEKTUALNEJ]],Parametry[#Headers],0))*INDEX('PARAMETRY PROJEKTU'!$B$12:$H$12,1,MATCH(Szczegóły[[#Headers],[PRAWNIK DS. WŁASNOŚCI INTELEKTUALNEJ]],Parametry[#Headers],0))*Szczegóły[[#This Row],[PRACA RZECZYWISTA]]","v":{"v":0,"d":"0 zł"}},{"$f":"INDEX(Parametry[],MATCH(Szczegóły[[#This Row],[TYP PROJEKTU]],Parametry[TYP PROJEKTU],0),MATCH(Szczegóły[[#Headers],[PRAWNIK DS. UPADŁOŚCI]],Parametry[#Headers],0))*INDEX('PARAMETRY PROJEKTU'!$B$12:$H$12,1,MATCH(Szczegóły[[#Headers],[PRAWNIK DS. UPADŁOŚCI]],Parametry[#Headers],0))*Szczegóły[[#This Row],[PRACA RZECZYWISTA]]","v":{"v":0,"d":"0 zł"}},{"$f":"INDEX(Parametry[],MATCH(Szczegóły[[#This Row],[TYP PROJEKTU]],Parametry[TYP PROJEKTU],0),MATCH(Szczegóły[[#Headers],[PERSONEL ADMINISTRACYJNY]],Parametry[#Headers],0))*INDEX('PARAMETRY PROJEKTU'!$B$12:$H$12,1,MATCH(Szczegóły[[#Headers],[PERSONEL ADMINISTRACYJNY]],Parametry[#Headers],0))*Szczegóły[[#This Row],[PRACA RZECZYWISTA]]","v":{"v":13750,"d":"13,750 zł"}}]
[null,"Projekt 2","Przejmowanie firmy",{"$f":"TODAY()+30","v":"2019-03-17"},{"$f":"TODAY()+100","v":"2019-05-26"},{"$f":"TODAY()+40","v":"2019-03-27"},{"$f":"TODAY()+110","v":"2019-06-05"},400,390,{"$f":"DAYS360(Szczegóły[[#This Row],[SZACOWANE ROZPOCZĘCIE]],Szczegóły[[#This Row],[SZACOWANE ZAKOŃCZENIE]],FALSE)","v":69},{"$f":"DAYS360(Szczegóły[[#This Row],[RZECZYWISTE ROZPOCZĘCIE]],Szczegóły[[#This Row],[RZECZYWISTE ZAKOŃCZENIE]],FALSE)","v":68},{"$f":"INDEX(Parametry[],MATCH(Szczegóły[[#This Row],[TYP PROJEKTU]],Parametry[TYP PROJEKTU],0),MATCH(Szczegóły[[#Headers],[PARTNER OGÓLNY]],Parametry[#Headers],0))*INDEX('PARAMETRY PROJEKTU'!$B$12:$H$12,1,MATCH(Szczegóły[[#Headers],[PARTNER OGÓLNY]],Parametry[#Headers],0))*Szczegóły[[#This Row],[PRACA SZACOWANA]]","v":{"v":14000,"d":"14,000 zł"}},{"$f":"INDEX(Parametry[],MATCH(Szczegóły[[#This Row],[TYP PROJEKTU]],Parametry[TYP PROJEKTU],0),MATCH(Szczegóły[[#Headers],[PRAWNIK DS. DZIAŁALNOŚCI]],Parametry[#Headers],0))*INDEX('PARAMETRY PROJEKTU'!$B$12:$H$12,1,MATCH(Szczegóły[[#Headers],[PRAWNIK DS. DZIAŁALNOŚCI]],Parametry[#Headers],0))*Szczegóły[[#This Row],[PRACA SZACOWANA]]","v":{"v":40000,"d":"40,000 zł"}},{"$f":"INDEX(Parametry[],MATCH(Szczegóły[[#This Row],[TYP PROJEKTU]],Parametry[TYP PROJEKTU],0),MATCH(Szczegóły[[#Headers],[OBROŃCA]],Parametry[#Headers],0))*INDEX('PARAMETRY PROJEKTU'!$B$12:$H$12,1,MATCH(Szczegóły[[#Headers],[OBROŃCA]],Parametry[#Headers],0))*Szczegóły[[#This Row],[PRACA SZACOWANA]]","v":{"v":0,"d":"0 zł"}},{"$f":"INDEX(Parametry[],MATCH(Szczegóły[[#This Row],[TYP PROJEKTU]],Parametry[TYP PROJEKTU],0),MATCH(Szczegóły[[#Headers],[PRAWNIK DS. WŁASNOŚCI INTELEKTUALNEJ]],Parametry[#Headers],0))*INDEX('PARAMETRY PROJEKTU'!$B$12:$H$12,1,MATCH(Szczegóły[[#Headers],[PRAWNIK DS. WŁASNOŚCI INTELEKTUALNEJ]],Parametry[#Headers],0))*Szczegóły[[#This Row],[PRACA SZACOWANA]]","v":{"v":11000,"d":"11,000 zł"}},{"$f":"INDEX(Parametry[],MATCH(Szczegóły[[#This Row],[TYP PROJEKTU]],Parametry[TYP PROJEKTU],0),MATCH(Szczegóły[[#Headers],[PRAWNIK DS. UPADŁOŚCI]],Parametry[#Headers],0))*INDEX('PARAMETRY PROJEKTU'!$B$12:$H$12,1,MATCH(Szczegóły[[#Headers],[PRAWNIK DS. UPADŁOŚCI]],Parametry[#Headers],0))*Szczegóły[[#This Row],[PRACA SZACOWANA]]","v":{"v":0,"d":"0 zł"}},{"$f":"INDEX(Parametry[],MATCH(Szczegóły[[#This Row],[TYP PROJEKTU]],Parametry[TYP PROJEKTU],0),MATCH(Szczegóły[[#Headers],[PERSONEL ADMINISTRACYJNY]],Parametry[#Headers],0))*INDEX('PARAMETRY PROJEKTU'!$B$12:$H$12,1,MATCH(Szczegóły[[#Headers],[PERSONEL ADMINISTRACYJNY]],Parametry[#Headers],0))*Szczegóły[[#This Row],[PRACA SZACOWANA]]","v":{"v":20000,"d":"20,000 zł"}},{"$f":"INDEX(Parametry[],MATCH(Szczegóły[[#This Row],[TYP PROJEKTU]],Parametry[TYP PROJEKTU],0),MATCH(Szczegóły[[#Headers],[PARTNER OGÓLNY]],Parametry[#Headers],0))*INDEX('PARAMETRY PROJEKTU'!$B$12:$H$12,1,MATCH(Szczegóły[[#Headers],[PARTNER OGÓLNY]],Parametry[#Headers],0))*Szczegóły[[#This Row],[PRACA RZECZYWISTA]]","v":{"v":13650,"d":"13,650 zł"}},{"$f":"INDEX(Parametry[],MATCH(Szczegóły[[#This Row],[TYP PROJEKTU]],Parametry[TYP PROJEKTU],0),MATCH(Szczegóły[[#Headers],[PRAWNIK DS. DZIAŁALNOŚCI]],Parametry[#Headers],0))*INDEX('PARAMETRY PROJEKTU'!$B$12:$H$12,1,MATCH(Szczegóły[[#Headers],[PRAWNIK DS. DZIAŁALNOŚCI]],Parametry[#Headers],0))*Szczegóły[[#This Row],[PRACA RZECZYWISTA]]","v":{"v":39000,"d":"39,000 zł"}},{"$f":"INDEX(Parametry[],MATCH(Szczegóły[[#This Row],[TYP PROJEKTU]],Parametry[TYP PROJEKTU],0),MATCH(Szczegóły[[#Headers],[OBROŃCA]],Parametry[#Headers],0))*INDEX('PARAMETRY PROJEKTU'!$B$12:$H$12,1,MATCH(Szczegóły[[#Headers],[OBROŃCA]],Parametry[#Headers],0))*Szczegóły[[#This Row],[PRACA RZECZYWISTA]]","v":{"v":0,"d":"0 zł"}},{"$f":"INDEX(Parametry[],MATCH(Szczegóły[[#This Row],[TYP PROJEKTU]],Parametry[TYP PROJEKTU],0),MATCH(Szczegóły[[#Headers],[PRAWNIK DS. WŁASNOŚCI INTELEKTUALNEJ]],Parametry[#Headers],0))*INDEX('PARAMETRY PROJEKTU'!$B$12:$H$12,1,MATCH(Szczegóły[[#Headers],[PRAWNIK DS. WŁASNOŚCI INTELEKTUALNEJ]],Parametry[#Headers],0))*Szczegóły[[#This Row],[PRACA RZECZYWISTA]]","v":{"v":10725,"d":"10,725 zł"}},{"$f":"INDEX(Parametry[],MATCH(Szczegóły[[#This Row],[TYP PROJEKTU]],Parametry[TYP PROJEKTU],0),MATCH(Szczegóły[[#Headers],[PRAWNIK DS. UPADŁOŚCI]],Parametry[#Headers],0))*INDEX('PARAMETRY PROJEKTU'!$B$12:$H$12,1,MATCH(Szczegóły[[#Headers],[PRAWNIK DS. UPADŁOŚCI]],Parametry[#Headers],0))*Szczegóły[[#This Row],[PRACA RZECZYWISTA]]","v":{"v":0,"d":"0 zł"}},{"$f":"INDEX(Parametry[],MATCH(Szczegóły[[#This Row],[TYP PROJEKTU]],Parametry[TYP PROJEKTU],0),MATCH(Szczegóły[[#Headers],[PERSONEL ADMINISTRACYJNY]],Parametry[#Headers],0))*INDEX('PARAMETRY PROJEKTU'!$B$12:$H$12,1,MATCH(Szczegóły[[#Headers],[PERSONEL ADMINISTRACYJNY]],Parametry[#Headers],0))*Szczegóły[[#This Row],[PRACA RZECZYWISTA]]","v":{"v":19500,"d":"19,500 zł"}}]
[null,"Projekt 3","Obrona przed skargami z tytułu wad produktów",{"$f":"TODAY()+150","v":"2019-07-15"},{"$f":"TODAY()+150","v":"2019-07-15"},{"$f":"TODAY()+150","v":"2019-07-15"},{"$f":"TODAY()+170","v":"2019-08-04"},500,500,{"$f":"DAYS360(Szczegóły[[#This Row],[SZACOWANE ROZPOCZĘCIE]],Szczegóły[[#This Row],[SZACOWANE ZAKOŃCZENIE]],FALSE)","v":0},{"$f":"DAYS360(Szczegóły[[#This Row],[RZECZYWISTE ROZPOCZĘCIE]],Szczegóły[[#This Row],[RZECZYWISTE ZAKOŃCZENIE]],FALSE)","v":19},{"$f":"INDEX(Parametry[],MATCH(Szczegóły[[#This Row],[TYP PROJEKTU]],Parametry[TYP PROJEKTU],0),MATCH(Szczegóły[[#Headers],[PARTNER OGÓLNY]],Parametry[#Headers],0))*INDEX('PARAMETRY PROJEKTU'!$B$12:$H$12,1,MATCH(Szczegóły[[#Headers],[PARTNER OGÓLNY]],Parametry[#Headers],0))*Szczegóły[[#This Row],[PRACA SZACOWANA]]","v":{"v":35000,"d":"35,000 zł"}},{"$f":"INDEX(Parametry[],MATCH(Szczegóły[[#This Row],[TYP PROJEKTU]],Parametry[TYP PROJEKTU],0),MATCH(Szczegóły[[#Headers],[PRAWNIK DS. DZIAŁALNOŚCI]],Parametry[#Headers],0))*INDEX('PARAMETRY PROJEKTU'!$B$12:$H$12,1,MATCH(Szczegóły[[#Headers],[PRAWNIK DS. DZIAŁALNOŚCI]],Parametry[#Headers],0))*Szczegóły[[#This Row],[PRACA SZACOWANA]]","v":{"v":0,"d":"0 zł"}},{"$f":"INDEX(Parametry[],MATCH(Szczegóły[[#This Row],[TYP PROJEKTU]],Parametry[TYP PROJEKTU],0),MATCH(Szczegóły[[#Headers],[OBROŃCA]],Parametry[#Headers],0))*INDEX('PARAMETRY PROJEKTU'!$B$12:$H$12,1,MATCH(Szczegóły[[#Headers],[OBROŃCA]],Parametry[#Headers],0))*Szczegóły[[#This Row],[PRACA SZACOWANA]]","v":{"v":75000,"d":"75,000 zł"}},{"$f":"INDEX(Parametry[],MATCH(Szczegóły[[#This Row],[TYP PROJEKTU]],Parametry[TYP PROJEKTU],0),MATCH(Szczegóły[[#Headers],[PRAWNIK DS. WŁASNOŚCI INTELEKTUALNEJ]],Parametry[#Headers],0))*INDEX('PARAMETRY PROJEKTU'!$B$12:$H$12,1,MATCH(Szczegóły[[#Headers],[PRAWNIK DS. WŁASNOŚCI INTELEKTUALNEJ]],Parametry[#Headers],0))*Szczegóły[[#This Row],[PRACA SZACOWANA]]","v":{"v":0,"d":"0 zł"}},{"$f":"INDEX(Parametry[],MATCH(Szczegóły[[#This Row],[TYP PROJEKTU]],Parametry[TYP PROJEKTU],0),MATCH(Szczegóły[[#Headers],[PRAWNIK DS. UPADŁOŚCI]],Parametry[#Headers],0))*INDEX('PARAMETRY PROJEKTU'!$B$12:$H$12,1,MATCH(Szczegóły[[#Headers],[PRAWNIK DS. UPADŁOŚCI]],Parametry[#Headers],0))*Szczegóły[[#This Row],[PRACA SZACOWANA]]","v":{"v":0,"d":"0 zł"}},{"$f":"INDEX(Parametry[],MATCH(Szczegóły[[#This Row],[TYP PROJEKTU]],Parametry[TYP PROJEKTU],0),MATCH(Szczegóły[[#Headers],[PERSONEL ADMINISTRACYJNY]],Parametry[#Headers],0))*INDEX('PARAMETRY PROJEKTU'!$B$12:$H$12,1,MATCH(Szczegóły[[#Headers],[PERSONEL ADMINISTRACYJNY]],Parametry[#Headers],0))*Szczegóły[[#This Row],[PRACA SZACOWANA]]","v":{"v":18750,"d":"18,750 zł"}},{"$f":"INDEX(Parametry[],MATCH(Szczegóły[[#This Row],[TYP PROJEKTU]],Parametry[TYP PROJEKTU],0),MATCH(Szczegóły[[#Headers],[PARTNER OGÓLNY]],Parametry[#Headers],0))*INDEX('PARAMETRY PROJEKTU'!$B$12:$H$12,1,MATCH(Szczegóły[[#Headers],[PARTNER OGÓLNY]],Parametry[#Headers],0))*Szczegóły[[#This Row],[PRACA RZECZYWISTA]]","v":{"v":35000,"d":"35,000 zł"}},{"$f":"INDEX(Parametry[],MATCH(Szczegóły[[#This Row],[TYP PROJEKTU]],Parametry[TYP PROJEKTU],0),MATCH(Szczegóły[[#Headers],[PRAWNIK DS. DZIAŁALNOŚCI]],Parametry[#Headers],0))*INDEX('PARAMETRY PROJEKTU'!$B$12:$H$12,1,MATCH(Szczegóły[[#Headers],[PRAWNIK DS. DZIAŁALNOŚCI]],Parametry[#Headers],0))*Szczegóły[[#This Row],[PRACA RZECZYWISTA]]","v":{"v":0,"d":"0 zł"}},{"$f":"INDEX(Parametry[],MATCH(Szczegóły[[#This Row],[TYP PROJEKTU]],Parametry[TYP PROJEKTU],0),MATCH(Szczegóły[[#Headers],[OBROŃCA]],Parametry[#Headers],0))*INDEX('PARAMETRY PROJEKTU'!$B$12:$H$12,1,MATCH(Szczegóły[[#Headers],[OBROŃCA]],Parametry[#Headers],0))*Szczegóły[[#This Row],[PRACA RZECZYWISTA]]","v":{"v":75000,"d":"75,000 zł"}},{"$f":"INDEX(Parametry[],MATCH(Szczegóły[[#This Row],[TYP PROJEKTU]],Parametry[TYP PROJEKTU],0),MATCH(Szczegóły[[#Headers],[PRAWNIK DS. WŁASNOŚCI INTELEKTUALNEJ]],Parametry[#Headers],0))*INDEX('PARAMETRY PROJEKTU'!$B$12:$H$12,1,MATCH(Szczegóły[[#Headers],[PRAWNIK DS. WŁASNOŚCI INTELEKTUALNEJ]],Parametry[#Headers],0))*Szczegóły[[#This Row],[PRACA RZECZYWISTA]]","v":{"v":0,"d":"0 zł"}},{"$f":"INDEX(Parametry[],MATCH(Szczegóły[[#This Row],[TYP PROJEKTU]],Parametry[TYP PROJEKTU],0),MATCH(Szczegóły[[#Headers],[PRAWNIK DS. UPADŁOŚCI]],Parametry[#Headers],0))*INDEX('PARAMETRY PROJEKTU'!$B$12:$H$12,1,MATCH(Szczegóły[[#Headers],[PRAWNIK DS. UPADŁOŚCI]],Parametry[#Headers],0))*Szczegóły[[#This Row],[PRACA RZECZYWISTA]]","v":{"v":0,"d":"0 zł"}},{"$f":"INDEX(Parametry[],MATCH(Szczegóły[[#This Row],[TYP PROJEKTU]],Parametry[TYP PROJEKTU],0),MATCH(Szczegóły[[#Headers],[PERSONEL ADMINISTRACYJNY]],Parametry[#Headers],0))*INDEX('PARAMETRY PROJEKTU'!$B$12:$H$12,1,MATCH(Szczegóły[[#Headers],[PERSONEL ADMINISTRACYJNY]],Parametry[#Headers],0))*Szczegóły[[#This Row],[PRACA RZECZYWISTA]]","v":{"v":18750,"d":"18,750 zł"}}]
[null,"Projekt 4","Wniosek patentowy",{"$f":"TODAY()+200","v":"2019-09-03"},{"$f":"TODAY()+230","v":"2019-10-03"},{"$f":"TODAY()+230","v":"2019-10-03"},{"$f":"TODAY()+230","v":"2019-10-03"},150,145,{"$f":"DAYS360(Szczegóły[[#This Row],[SZACOWANE ROZPOCZĘCIE]],Szczegóły[[#This Row],[SZACOWANE ZAKOŃCZENIE]],FALSE)","v":30},{"$f":"DAYS360(Szczegóły[[#This Row],[RZECZYWISTE ROZPOCZĘCIE]],Szczegóły[[#This Row],[RZECZYWISTE ZAKOŃCZENIE]],FALSE)","v":0},{"$f":"INDEX(Parametry[],MATCH(Szczegóły[[#This Row],[TYP PROJEKTU]],Parametry[TYP PROJEKTU],0),MATCH(Szczegóły[[#Headers],[PARTNER OGÓLNY]],Parametry[#Headers],0))*INDEX('PARAMETRY PROJEKTU'!$B$12:$H$12,1,MATCH(Szczegóły[[#Headers],[PARTNER OGÓLNY]],Parametry[#Headers],0))*Szczegóły[[#This Row],[PRACA SZACOWANA]]","v":{"v":5250,"d":"5,250 zł"}},{"$f":"INDEX(Parametry[],MATCH(Szczegóły[[#This Row],[TYP PROJEKTU]],Parametry[TYP PROJEKTU],0),MATCH(Szczegóły[[#Headers],[PRAWNIK DS. DZIAŁALNOŚCI]],Parametry[#Headers],0))*INDEX('PARAMETRY PROJEKTU'!$B$12:$H$12,1,MATCH(Szczegóły[[#Headers],[PRAWNIK DS. DZIAŁALNOŚCI]],Parametry[#Headers],0))*Szczegóły[[#This Row],[PRACA SZACOWANA]]","v":{"v":0,"d":"0 zł"}},{"$f":"INDEX(Parametry[],MATCH(Szczegóły[[#This Row],[TYP PROJEKTU]],Parametry[TYP PROJEKTU],0),MATCH(Szczegóły[[#Headers],[OBROŃCA]],Parametry[#Headers],0))*INDEX('PARAMETRY PROJEKTU'!$B$12:$H$12,1,MATCH(Szczegóły[[#Headers],[OBROŃCA]],Parametry[#Headers],0))*Szczegóły[[#This Row],[PRACA SZACOWANA]]","v":{"v":0,"d":"0 zł"}},{"$f":"INDEX(Parametry[],MATCH(Szczegóły[[#This Row],[TYP PROJEKTU]],Parametry[TYP PROJEKTU],0),MATCH(Szczegóły[[#Headers],[PRAWNIK DS. WŁASNOŚCI INTELEKTUALNEJ]],Parametry[#Headers],0))*INDEX('PARAMETRY PROJEKTU'!$B$12:$H$12,1,MATCH(Szczegóły[[#Headers],[PRAWNIK DS. WŁASNOŚCI INTELEKTUALNEJ]],Parametry[#Headers],0))*Szczegóły[[#This Row],[PRACA SZACOWANA]]","v":{"v":24750,"d":"24,750 zł"}},{"$f":"INDEX(Parametry[],MATCH(Szczegóły[[#This Row],[TYP PROJEKTU]],Parametry[TYP PROJEKTU],0),MATCH(Szczegóły[[#Headers],[PRAWNIK DS. UPADŁOŚCI]],Parametry[#Headers],0))*INDEX('PARAMETRY PROJEKTU'!$B$12:$H$12,1,MATCH(Szczegóły[[#Headers],[PRAWNIK DS. UPADŁOŚCI]],Parametry[#Headers],0))*Szczegóły[[#This Row],[PRACA SZACOWANA]]","v":{"v":0,"d":"0 zł"}},{"$f":"INDEX(Parametry[],MATCH(Szczegóły[[#This Row],[TYP PROJEKTU]],Parametry[TYP PROJEKTU],0),MATCH(Szczegóły[[#Headers],[PERSONEL ADMINISTRACYJNY]],Parametry[#Headers],0))*INDEX('PARAMETRY PROJEKTU'!$B$12:$H$12,1,MATCH(Szczegóły[[#Headers],[PERSONEL ADMINISTRACYJNY]],Parametry[#Headers],0))*Szczegóły[[#This Row],[PRACA SZACOWANA]]","v":{"v":5625,"d":"5,625 zł"}},{"$f":"INDEX(Parametry[],MATCH(Szczegóły[[#This Row],[TYP PROJEKTU]],Parametry[TYP PROJEKTU],0),MATCH(Szczegóły[[#Headers],[PARTNER OGÓLNY]],Parametry[#Headers],0))*INDEX('PARAMETRY PROJEKTU'!$B$12:$H$12,1,MATCH(Szczegóły[[#Headers],[PARTNER OGÓLNY]],Parametry[#Headers],0))*Szczegóły[[#This Row],[PRACA RZECZYWISTA]]","v":{"v":5075,"d":"5,075 zł"}},{"$f":"INDEX(Parametry[],MATCH(Szczegóły[[#This Row],[TYP PROJEKTU]],Parametry[TYP PROJEKTU],0),MATCH(Szczegóły[[#Headers],[PRAWNIK DS. DZIAŁALNOŚCI]],Parametry[#Headers],0))*INDEX('PARAMETRY PROJEKTU'!$B$12:$H$12,1,MATCH(Szczegóły[[#Headers],[PRAWNIK DS. DZIAŁALNOŚCI]],Parametry[#Headers],0))*Szczegóły[[#This Row],[PRACA RZECZYWISTA]]","v":{"v":0,"d":"0 zł"}},{"$f":"INDEX(Parametry[],MATCH(Szczegóły[[#This Row],[TYP PROJEKTU]],Parametry[TYP PROJEKTU],0),MATCH(Szczegóły[[#Headers],[OBROŃCA]],Parametry[#Headers],0))*INDEX('PARAMETRY PROJEKTU'!$B$12:$H$12,1,MATCH(Szczegóły[[#Headers],[OBROŃCA]],Parametry[#Headers],0))*Szczegóły[[#This Row],[PRACA RZECZYWISTA]]","v":{"v":0,"d":"0 zł"}},{"$f":"INDEX(Parametry[],MATCH(Szczegóły[[#This Row],[TYP PROJEKTU]],Parametry[TYP PROJEKTU],0),MATCH(Szczegóły[[#Headers],[PRAWNIK DS. WŁASNOŚCI INTELEKTUALNEJ]],Parametry[#Headers],0))*INDEX('PARAMETRY PROJEKTU'!$B$12:$H$12,1,MATCH(Szczegóły[[#Headers],[PRAWNIK DS. WŁASNOŚCI INTELEKTUALNEJ]],Parametry[#Headers],0))*Szczegóły[[#This Row],[PRACA RZECZYWISTA]]","v":{"v":23925,"d":"23,925 zł"}},{"$f":"INDEX(Parametry[],MATCH(Szczegóły[[#This Row],[TYP PROJEKTU]],Parametry[TYP PROJEKTU],0),MATCH(Szczegóły[[#Headers],[PRAWNIK DS. UPADŁOŚCI]],Parametry[#Headers],0))*INDEX('PARAMETRY PROJEKTU'!$B$12:$H$12,1,MATCH(Szczegóły[[#Headers],[PRAWNIK DS. UPADŁOŚCI]],Parametry[#Headers],0))*Szczegóły[[#This Row],[PRACA RZECZYWISTA]]","v":{"v":0,"d":"0 zł"}},{"$f":"INDEX(Parametry[],MATCH(Szczegóły[[#This Row],[TYP PROJEKTU]],Parametry[TYP PROJEKTU],0),MATCH(Szczegóły[[#Headers],[PERSONEL ADMINISTRACYJNY]],Parametry[#Headers],0))*INDEX('PARAMETRY PROJEKTU'!$B$12:$H$12,1,MATCH(Szczegóły[[#Headers],[PERSONEL ADMINISTRACYJNY]],Parametry[#Headers],0))*Szczegóły[[#This Row],[PRACA RZECZYWISTA]]","v":{"v":5437.5,"d":"5,438 zł"}}]
[null,"Projekt 5","Pozew pracownika",{"$f":"TODAY()+220","v":"2019-09-23"},{"$f":"TODAY()+250","v":"2019-10-23"},{"$f":"TODAY()+230","v":"2019-10-03"},{"$f":"TODAY()+259","v":"2019-11-01"},250,255,{"$f":"DAYS360(Szczegóły[[#This Row],[SZACOWANE ROZPOCZĘCIE]],Szczegóły[[#This Row],[SZACOWANE ZAKOŃCZENIE]],FALSE)","v":30},{"$f":"DAYS360(Szczegóły[[#This Row],[RZECZYWISTE ROZPOCZĘCIE]],Szczegóły[[#This Row],[RZECZYWISTE ZAKOŃCZENIE]],FALSE)","v":28},{"$f":"INDEX(Parametry[],MATCH(Szczegóły[[#This Row],[TYP PROJEKTU]],Parametry[TYP PROJEKTU],0),MATCH(Szczegóły[[#Headers],[PARTNER OGÓLNY]],Parametry[#Headers],0))*INDEX('PARAMETRY PROJEKTU'!$B$12:$H$12,1,MATCH(Szczegóły[[#Headers],[PARTNER OGÓLNY]],Parametry[#Headers],0))*Szczegóły[[#This Row],[PRACA SZACOWANA]]","v":{"v":17500,"d":"17,500 zł"}},{"$f":"INDEX(Parametry[],MATCH(Szczegóły[[#This Row],[TYP PROJEKTU]],Parametry[TYP PROJEKTU],0),MATCH(Szczegóły[[#Headers],[PRAWNIK DS. DZIAŁALNOŚCI]],Parametry[#Headers],0))*INDEX('PARAMETRY PROJEKTU'!$B$12:$H$12,1,MATCH(Szczegóły[[#Headers],[PRAWNIK DS. DZIAŁALNOŚCI]],Parametry[#Headers],0))*Szczegóły[[#This Row],[PRACA SZACOWANA]]","v":{"v":6250,"d":"6,250 zł"}},{"$f":"INDEX(Parametry[],MATCH(Szczegóły[[#This Row],[TYP PROJEKTU]],Parametry[TYP PROJEKTU],0),MATCH(Szczegóły[[#Headers],[OBROŃCA]],Parametry[#Headers],0))*INDEX('PARAMETRY PROJEKTU'!$B$12:$H$12,1,MATCH(Szczegóły[[#Headers],[OBROŃCA]],Parametry[#Headers],0))*Szczegóły[[#This Row],[PRACA SZACOWANA]]","v":{"v":30000,"d":"30,000 zł"}},{"$f":"INDEX(Parametry[],MATCH(Szczegóły[[#This Row],[TYP PROJEKTU]],Parametry[TYP PROJEKTU],0),MATCH(Szczegóły[[#Headers],[PRAWNIK DS. WŁASNOŚCI INTELEKTUALNEJ]],Parametry[#Headers],0))*INDEX('PARAMETRY PROJEKTU'!$B$12:$H$12,1,MATCH(Szczegóły[[#Headers],[PRAWNIK DS. WŁASNOŚCI INTELEKTUALNEJ]],Parametry[#Headers],0))*Szczegóły[[#This Row],[PRACA SZACOWANA]]","v":{"v":0,"d":"0 zł"}},{"$f":"INDEX(Parametry[],MATCH(Szczegóły[[#This Row],[TYP PROJEKTU]],Parametry[TYP PROJEKTU],0),MATCH(Szczegóły[[#Headers],[PRAWNIK DS. UPADŁOŚCI]],Parametry[#Headers],0))*INDEX('PARAMETRY PROJEKTU'!$B$12:$H$12,1,MATCH(Szczegóły[[#Headers],[PRAWNIK DS. UPADŁOŚCI]],Parametry[#Headers],0))*Szczegóły[[#This Row],[PRACA SZACOWANA]]","v":{"v":0,"d":"0 zł"}},{"$f":"INDEX(Parametry[],MATCH(Szczegóły[[#This Row],[TYP PROJEKTU]],Parametry[TYP PROJEKTU],0),MATCH(Szczegóły[[#Headers],[PERSONEL ADMINISTRACYJNY]],Parametry[#Headers],0))*INDEX('PARAMETRY PROJEKTU'!$B$12:$H$12,1,MATCH(Szczegóły[[#Headers],[PERSONEL ADMINISTRACYJNY]],Parametry[#Headers],0))*Szczegóły[[#This Row],[PRACA SZACOWANA]]","v":{"v":9375,"d":"9,375 zł"}},{"$f":"INDEX(Parametry[],MATCH(Szczegóły[[#This Row],[TYP PROJEKTU]],Parametry[TYP PROJEKTU],0),MATCH(Szczegóły[[#Headers],[PARTNER OGÓLNY]],Parametry[#Headers],0))*INDEX('PARAMETRY PROJEKTU'!$B$12:$H$12,1,MATCH(Szczegóły[[#Headers],[PARTNER OGÓLNY]],Parametry[#Headers],0))*Szczegóły[[#This Row],[PRACA RZECZYWISTA]]","v":{"v":17850,"d":"17,850 zł"}},{"$f":"INDEX(Parametry[],MATCH(Szczegóły[[#This Row],[TYP PROJEKTU]],Parametry[TYP PROJEKTU],0),MATCH(Szczegóły[[#Headers],[PRAWNIK DS. DZIAŁALNOŚCI]],Parametry[#Headers],0))*INDEX('PARAMETRY PROJEKTU'!$B$12:$H$12,1,MATCH(Szczegóły[[#Headers],[PRAWNIK DS. DZIAŁALNOŚCI]],Parametry[#Headers],0))*Szczegóły[[#This Row],[PRACA RZECZYWISTA]]","v":{"v":6375,"d":"6,375 zł"}},{"$f":"INDEX(Parametry[],MATCH(Szczegóły[[#This Row],[TYP PROJEKTU]],Parametry[TYP PROJEKTU],0),MATCH(Szczegóły[[#Headers],[OBROŃCA]],Parametry[#Headers],0))*INDEX('PARAMETRY PROJEKTU'!$B$12:$H$12,1,MATCH(Szczegóły[[#Headers],[OBROŃCA]],Parametry[#Headers],0))*Szczegóły[[#This Row],[PRACA RZECZYWISTA]]","v":{"v":30600,"d":"30,600 zł"}},{"$f":"INDEX(Parametry[],MATCH(Szczegóły[[#This Row],[TYP PROJEKTU]],Parametry[TYP PROJEKTU],0),MATCH(Szczegóły[[#Headers],[PRAWNIK DS. WŁASNOŚCI INTELEKTUALNEJ]],Parametry[#Headers],0))*INDEX('PARAMETRY PROJEKTU'!$B$12:$H$12,1,MATCH(Szczegóły[[#Headers],[PRAWNIK DS. WŁASNOŚCI INTELEKTUALNEJ]],Parametry[#Headers],0))*Szczegóły[[#This Row],[PRACA RZECZYWISTA]]","v":{"v":0,"d":"0 zł"}},{"$f":"INDEX(Parametry[],MATCH(Szczegóły[[#This Row],[TYP PROJEKTU]],Parametry[TYP PROJEKTU],0),MATCH(Szczegóły[[#Headers],[PRAWNIK DS. UPADŁOŚCI]],Parametry[#Headers],0))*INDEX('PARAMETRY PROJEKTU'!$B$12:$H$12,1,MATCH(Szczegóły[[#Headers],[PRAWNIK DS. UPADŁOŚCI]],Parametry[#Headers],0))*Szczegóły[[#This Row],[PRACA RZECZYWISTA]]","v":{"v":0,"d":"0 zł"}},{"$f":"INDEX(Parametry[],MATCH(Szczegóły[[#This Row],[TYP PROJEKTU]],Parametry[TYP PROJEKTU],0),MATCH(Szczegóły[[#Headers],[PERSONEL ADMINISTRACYJNY]],Parametry[#Headers],0))*INDEX('PARAMETRY PROJEKTU'!$B$12:$H$12,1,MATCH(Szczegóły[[#Headers],[PERSONEL ADMINISTRACYJNY]],Parametry[#Headers],0))*Szczegóły[[#This Row],[PRACA RZECZYWISTA]]","v":{"v":9562.5,"d":"9,563 zł"}}]
[null,"SUMA",{"$nulls":5},{"$f":"SUBTOTAL(109,Szczegóły[PRACA SZACOWANA])","v":1500},{"$f":"SUBTOTAL(109,Szczegóły[PRACA RZECZYWISTA])","v":1510},{"$f":"SUBTOTAL(109,Szczegóły[SZACOWANY CZAS TRWANIA])","v":190},{"$f":"SUBTOTAL(109,Szczegóły[RZECZYWISTY CZAS TRWANIA])","v":171}]

{"sheet":"SUMY PROJEKTU","index":3,"n_rows":11,"n_cols":16,"rows_kept":11,"merged":[[3,2,3,7],[3,8,3,13],[3,15,14,19]]}
["W tym arkuszu uzyskasz sumy projektu. Nazwa firmy jest automatycznie aktualizowana w komórce po prawej stronie. W komórkach w tej kolumnie podano przydatne instrukcje. Naciśnij strzałkę w dół, aby rozpocząć pracę.",{"$f":"'PARAMETRY PROJEKTU'!B1","v":"Nazwa firmy"}]
["W komórce po prawej stronie znajduje się tytuł tego arkusza.",{"$f":"'PARAMETRY PROJEKTU'!B2","v":"Planowanie projektu dla kancelarii prawnych"}]
["W komórce po prawej stronie znajduje się komunikat dotyczący poufności informacji.",{"$f":"'PARAMETRY PROJEKTU'!B3","v":"Poufna Nazwa firmy"}]
["W komórce C4 znajduje się etykieta Szacowane, w komórce I4 — etykieta Rzeczywiste, a w komórce P4 — porada informacyjna.",null,"SZACOWANE",{"$nulls":5},"RZECZYWISTE",{"$nulls":6},"INFORMACJE: \nTa tabela przestawna nie jest odświeżana automatycznie.  Aby ją odświeżyć, zaznacz ją (dowolną komórkę w tej tabeli przestawnej) i na karcie wstążki NARZĘDZIA TABEL PRZESTAWNYCH | ANALIZA wybierz pozycję Odśwież.  Ewentualnie przy zaznaczonej tabeli przestawnej naciśnij klawisze SHIFT+F10 i wybierz pozycję Odśwież."]
["Tabela przestawna zaczynająca się w komórce po prawej stronie jest aktualizowana automatycznie","NAZWA PROJEKTU","PARTNER OGÓLNY ","DZIAŁALNOŚĆ ","OBROŃCA ","WŁASNOŚĆ INTELEKTUALNA ","UPADŁOŚĆ ","PERSONEL ADMINISTRACYJNY ","PARTNER OGÓLNY  ","DZIAŁALNOŚĆ  ","OBROŃCA  ","UPADŁOŚĆ  ","WŁASNOŚĆ INTELEKTUALNA  ","PERSONEL ADMINISTRACYJNY  "]
[null,"Projekt 1",{"v":7000,"d":"7,000.00 zł"},{"v":20000,"d":"20,000.00 zł"},{"v":0,"d":"0.00 zł"},{"v":0,"d":"0.00 zł"},{"v":0,"d":"0.00 zł"},{"v":12500,"d":"12,500.00 zł"},{"v":7700,"d":"7,700.00 zł"},{"v":22000,"d":"22,000.00 zł"},{"v":0,"d":"0.00 zł"},{"v":0,"d":"0.00 zł"},{"v":0,"d":"0.00 zł"},{"v":13750,"d":"13,750.00 zł"}]
[null,"Projekt 2",{"v":14000,"d":"14,000.00 zł"},{"v":40000,"d":"40,000.00 zł"},{"v":0,"d":"0.00 zł"},{"v":11000,"d":"11,000.00 zł"},{"v":0,"d":"0.00 zł"},{"v":20000,"d":"20,000.00 zł"},{"v":13650,"d":"13,650.00 zł"},{"v":39000,"d":"39,000.00 zł"},{"v":0,"d":"0.00 zł"},{"v":10725,"d":"10,725.00 zł"},{"v":0,"d":"0.00 zł"},{"v":19500,"d":"19,500.00 zł"}]
[null,"Projekt 3",{"v":35000,"d":"35,000.00 zł"},{"v":0,"d":"0.00 zł"},{"v":75000,"d":"75,000.00 zł"},{"v":0,"d":"0.00 zł"},{"v":0,"d":"0.00 zł"},{"v":18750,"d":"18,750.00 zł"},{"v":35000,"d":"35,000.00 zł"},{"v":0,"d":"0.00 zł"},{"v":75000,"d":"75,000.00 zł"},{"v":0,"d":"0.00 zł"},{"v":0,"d":"0.00 zł"},{"v":18750,"d":"18,750.00 zł"}]
[null,"Projekt 4",{"v":5250,"d":"5,250.00 zł"},{"v":0,"d":"0.00 zł"},{"v":0,"d":"0.00 zł"},{"v":24750,"d":"24,750.00 zł"},{"v":0,"d":"0.00 zł"},{"v":5625,"d":"5,625.00 zł"},{"v":5075,"d":"5,075.00 zł"},{"v":0,"d":"0.00 zł"},{"v":0,"d":"0.00 zł"},{"v":23925,"d":"23,925.00 zł"},{"v":0,"d":"0.00 zł"},{"v":5437.5,"d":"5,437.50 zł"}]
[null,"Projekt 5",{"v":17500,"d":"17,500.00 zł"},{"v":6250,"d":"6,250.00 zł"},{"v":30000,"d":"30,000.00 zł"},{"v":0,"d":"0.00 zł"},{"v":0,"d":"0.00 zł"},{"v":9375,"d":"9,375.00 zł"},{"v":17850,"d":"17,850.00 zł"},{"v":6375,"d":"6,375.00 zł"},{"v":30600,"d":"30,600.00 zł"},{"v":0,"d":"0.00 zł"},{"v":0,"d":"0.00 zł"},{"v":9562.5,"d":"9,562.50 zł"}]
[null,"Suma końcowa",{"v":78750,"d":"78,750.00 zł"},{"v":66250,"d":"66,250.00 zł"},{"v":105000,"d":"105,000.00 zł"},{"v":35750,"d":"35,750.00 zł"},{"v":0,"d":"0.00 zł"},{"v":66250,"d":"66,250.00 zł"},{"v":79275,"d":"79,275.00 zł"},{"v":67375,"d":"67,375.00 zł"},{"v":105600,"d":"105,600.00 zł"},{"v":34650,"d":"34,650.00 zł"},{"v":0,"d":"0.00 zł"},{"v":67000,"d":"67,000.00 zł"}]